Cogmind - Beta 15 @@@ ROGUE MODE // 2025.06.04 @ 16:20:34 Player: EX-OCT Result: Destroyed by Y-54 Guardian with Gatling Laser Performance ------------- Evolutions (3) 1500 Regions Visited (10) 2000 Robots Destroyed (58) 290 Value Destroyed (2562) 2562 Prototype IDs (28) 560 Alien Tech Used (0) 0 Bonus (1793) 1793 TOTAL SCORE: 8705 Bonus ------- High Alert Combat Kills 11 Follower Combat Kills 82 Entered Garrisons 400 Used RIF Installer 1000 Aligned with FarCom 300 Cogmind --------- Core Integrity 0/700 Matter 175/300 Energy 275/275 System Corruption 0% Temperature Cool (18) Movement Core (250) Ox4 Location -7/Factory Parts ------- > --- POWER (1) -------- Deuterium Engine > --- PROPULSION (5) --- (None) > --- UTILITY (5) ------ Hacking Suite Hacking Suite System Shield > --- WEAPON (2) ------- Great Axe > --- INVENTORY (5) ---- Relay Coupler [Heavy] (14) YOLO Cannon Heavy Rocket Launcher Remote Datajack Peak State ------------ > --- POWER ------------ Light Quantum Reactor > --- PROPULSION ------- Aluminum Leg Aluminum Leg Aluminum Leg Improved Aluminum Leg Carbon-fiber Leg > --- UTILITY ---------- Large Storage Unit Advanced Phase Shifter Hardened Medium Armor Plating Hacking Suite Hacking Suite > --- WEAPON ----------- Chainsword Great Axe > --- INVENTORY -------- Light Nuclear Core Improved Deuterium Engine Improved Heat Sink Structural Scanner System Shield System Shield Relay Coupler [Swarmer] Relay Coupler [Heavy] Improved Trap Extractor Advanced Beam Rifle YOLO Cannon Improved Datajack Remote Datajack Plasma Cutter [Rating: 50] Favorites ----------- Power Light Deuterium Engine Engine Light Deuterium Engine Power Core Light Nuclear Core Reactor Light Quantum Reactor Propulsion Aerolev Unit Treads Armored Treads Leg Improved Aluminum Leg Wheel Wheel Hover Unit Aerolev Unit Flight Unit Xenon Bombardment Thruster Utility Hacking Suite Device Improved Heat Sink Storage Large Storage Unit Processor Transport Network Coupler Hackware Hacking Suite Protection Hardened Medium Armor Plating Weapon Assault Rifle Energy Gun Advanced Beam Rifle Energy Cannon YOLO Cannon Ballistic Gun Assault Rifle Ballistic Cannon Assault Cannon Launcher Heavy Rocket Launcher Special Weapon Remote Datajack Impact Weapon Flail Slashing Weapon Great Axe Special Melee Weapon Improved Datajack Build | -11 -10 -10 -10 -9 -8 -8 -8 -7 -7 -7 ------- Run | Yrd Mat Min Exi Min Mat Gar Mat Fac Gar Fac Slots Evolved 6 | . . . . . 4 . . 2 . . Power . | . . . . . . . . . . . Propulsion 3 | . . . . . 3 . . . . . Utility 3 | . . . . . 1 . . 2 . . Weapon . | . . . . . . . . . . . Parts Attached 96 | 7 1 . 1 . 40 6 17 7 7 10 Power 8 | 1 . . . . 3 1 . 1 1 1 Engine 5 | 1 . . . . 1 1 . 1 . 1 Core 2 | . . . . . 2 . . . . . Reactor 1 | . . . . . . . . . 1 . Propulsion 40 | 2 . . 1 . 21 . 11 . 2 3 Treads 1 | . . . . . . . 1 . . . Leg 14 | . . . . . 4 . 8 . 2 . Wheel 3 | 2 . . 1 . . . . . . . Hover 20 | . . . . . 17 . 1 . . 2 Flight 2 | . . . . . . . 1 . . 1 Utility 28 | 2 1 . . . 7 4 3 4 3 4 Device 10 | 1 . . . . 2 1 2 1 1 2 Storage 4 | 1 1 . . . 2 . . . . . Processor 1 | . . . . . 1 . . . . . Hackware 8 | . . . . . . 2 1 2 2 1 Protection 5 | . . . . . 2 1 . 1 . 1 Artifact . | . . . . . . . . . . . Weapon 20 | 2 . . . . 9 1 3 2 1 2 Energy Gun 3 | . . . . . 2 . . 1 . . Energy Cannon 1 | . . . . . 1 . . . . . Ballistic Gun 6 | 2 . . . . 3 . 1 . . . Ballistic Cannon 2 | . . . . . 1 . 1 . . . Launcher 1 | . . . . . . . . . . 1 Special Weapon 1 | . . . . . . . . . . 1 Impact Weapon 2 | . . . . . 2 . . . . . Slashing Weapon 2 | . . . . . . . . 1 1 . Piercing Weapon . | . . . . . . . . . . . Special Melee Weapon 2 | . . . . . . 1 1 . . . Unidentified Prototypes 5 | . . . . . 4 . 1 . . . Parts Lost 47 | . . . . . 18 6 2 5 12 4 Power 4 | . . . . . 2 1 . . 1 . Propulsion 26 | . . . . . 11 4 1 2 5 3 Utility 11 | . . . . . 3 1 1 1 4 1 Weapon 6 | . . . . . 2 . . 2 2 . Highest Loss Streak 10 | . . . . . 8 3 1 2 10 4 To Critical Strikes . | . . . . . . . . . . . Average Backups 11 | . 10 20 19 19 8 11 13 12 12 3 Power 1 | . 1 2 2 2 1 . 1 1 1 . Propulsion 2 | . 5 11 10 10 1 . . . . . Utility 3 | . 2 6 5 5 1 2 6 5 5 1 Weapon 2 | . . . . 1 3 6 4 3 1 2 Tool/Special . | . . . . . . . . . . . Unused Backups 10 | . . 1 . . 3 . 1 . 4 1 Power 3 | . . 1 . . 1 . . . 1 . Propulsion . | . . . . . . . . . . . Utility 5 | . . . . . 2 . . . 2 1 Weapon 1 | . . . . . . . 1 . . . Tool/Special 1 | . . . . . . . . . 1 . Average Slot Usage (%) 83 | . 85 85 85 85 86 82 96 90 72 54 Engine 3 | . . . . . 1 3 9 7 . 4 Core 1 | . . . . . 6 4 . . . . Leg 14 | . . . . . 10 . 32 30 19 . Wheel 5 | . 28 28 28 28 . . . . . . Hover 11 | . . . . . 28 39 7 . . 12 Device 8 | . 14 14 14 14 6 8 7 7 5 7 Storage 8 | . 14 14 14 14 9 9 9 7 5 . Hackware 8 | . . . . . . 1 9 17 15 20 Protection 3 | . . . . . 5 5 . 4 5 . Energy Gun 2 | . . . . . 4 . 2 2 4 . Ballistic Gun 7 | . 28 28 28 28 8 . 4 . . . Ballistic Cannon 1 | . . . . . 2 . 5 4 . . Impact Weapon 1 | . . . . . 1 9 3 . . . Slashing Weapon 2 | . . . . . . . . 4 8 4 Peak Build Rating 50 | 6 8 8 10 10 49 37 39 39 50 36 Average Rating 27 | 4 6 8 9 10 30 32 31 35 39 26 On Entrance 16 | . 6 8 8 10 10 35 27 29 35 9 Naked Turns . | . . . . . . . . . . . Heaviest Build 53 | 10 45 45 45 45 41 36 35 50 53 16 Greatest Support 68 | 20 20 20 26 26 68 40 66 66 58 16 Greatest Overweight (x) 3 | . 2 2 2 1 3 1 1 1 1 . Average Overweight (x) . | . . 2 1 1 . . . . . . Largest Inventory Capacity 20 | 8 20 20 20 20 20 15 15 15 15 5 Average Capacity 13 | 7 15 20 20 20 12 15 15 15 13 5 Most Carried 20 | 2 20 20 20 20 19 15 15 14 15 5 Average Carried 12 | 1 10 20 19 20 9 12 14 13 13 4 Final Capacity 20 | 8 20 20 20 20 15 15 15 15 5 5 Final Carried 20 | 2 20 20 20 20 12 14 14 14 5 5 Class Distribution -------------------- 48% | Mutant 38% | Hacker-Mutant 13% | Bothacker-Mutant Dominant Class ---------------- Mutant | -10/Materials Mutant | -10/Mines Mutant | -10/Exiles Mutant | -9/Mines Mutant | -8/Materials Mutant | -8/Garrison Bothacker-Mutant | -8/Materials Hacker-Mutant | -7/Factory Hacker-Mutant | -7/Garrison Hacker-Mutant | -7/Factory Resources | -11 -10 -10 -10 -9 -8 -8 -8 -7 -7 -7 ----------- Run | Yrd Mat Min Exi Min Mat Gar Mat Fac Gar Fac Matter Collected 2087 | 217 152 92 73 . 679 90 350 219 215 . Remotely . | . . . . . . . . . . . Salvage Created 2350 | 30 152 92 . . 958 222 492 220 121 63 Parts 132 | 5 11 8 . . 58 6 29 10 4 1 Haulers Intercepted 3 | . . . . . 3 . . . . . Recyclers Shooed . | . . . . . . . . . . . Parts Field Recycled . | . . . . . . . . . . . Retrieved Matter . | . . . . . . . . . . . Parts Self-Destructed . | . . . . . . . . . . . Prevented . | . . . . . . . . . . . Kills | -11 -10 -10 -10 -9 -8 -8 -8 -7 -7 -7 ------- Run | Yrd Mat Min Exi Min Mat Gar Mat Fac Gar Fac Combat Hostiles Destroyed 46 | . 5 2 . . 19 5 9 4 1 1 Melee 5 | . . . . . . 2 . 1 1 1 Guns 23 | . 5 2 . . 9 . 6 1 . . Cannons 10 | . . . . . 6 . 3 1 . . AOE 5 | . . . . . 4 . . 1 . . Classes Destroyed 12 | 1 2 . . . 6 . 1 2 . . Worker 2 | . . . . . 2 . . . . . Builder 2 | . . . . . 1 . 1 . . . Tunneler 1 | 1 . . . . . . . . . . Hauler 3 | . . . . . 3 . . . . . Recycler 1 | . . . . . . . . 1 . . Watcher 3 | . . . . . 2 . 1 . . . Swarmer 6 | . 3 . . . 3 . . . . . Grunt 22 | . 2 2 . . 9 2 6 1 . . Brawler 1 | . . . . . . . 1 . . . Sentry 11 | . . . . . 5 1 1 2 1 1 Hunter 5 | . . . . . 2 2 1 . . . Programmer 1 | . . . . . . . . 1 . . Best Kill Streak 6 | 1 4 2 . . 6 5 3 1 1 1 Combat Bots Only 6 | . 4 2 . . 6 5 3 1 1 1 Max Kills in Single Turn 5 | 1 1 1 . . 5 1 2 1 1 1 Gunslinging . | . . . . . . . . . . . Exploded 4 | . . . . . 4 . . 1 . . Melee 1 | . . . . . . 1 . 1 1 1 Uniques/NPCs Destroyed . | . . . . . . . . . . . Combat | -11 -10 -10 -10 -9 -8 -8 -8 -7 -7 -7 -------- Run | Yrd Mat Min Exi Min Mat Gar Mat Fac Gar Fac Hostile Shots Fired 672 | . 15 13 . . 224 38 55 100 167 60 Missed 207 | . 2 4 . . 57 8 19 38 59 20 Hits 465 | . 13 9 . . 167 30 36 62 108 40 Melee 9 | . . . . . 6 3 . . . . Projectile 456 | . 13 9 . . 161 27 36 62 108 40 Critical Strikes 13 | . . . . . 4 3 1 1 4 . Damage Taken 6329 | . 162 113 . . 2594 461 558 684 1412 345 Core 1272 | . 41 35 . . 321 87 84 46 531 127 Absorbed by Shields 17 | . . . . . . . . . 17 . Core Remaining (%) 59 | 100 . . . 69 . . 10 . . . Volleys Fired 144 | 1 15 8 . . 61 . 37 22 . . Largest 2 | 2 2 2 . . 2 . 2 2 . . Hottest 100 | 40 40 40 . . 100 . 84 98 . . Shots Fired 269 | 2 30 16 . . 115 . 75 30 1 . Gun 194 | 2 30 16 . . 81 . 53 11 1 . Cannon 75 | . . . . . 34 . 22 19 . . Launcher . | . . . . . . . . . . . Special . | . . . . . . . . . . . Kinetic 217 | 2 30 16 . . 87 . 59 23 . . Thermal 52 | . . . . . 28 . 16 7 1 . Explosive . | . . . . . . . . . . . Electromagnetic . | . . . . . . . . . . . Robot Hit Streak 12 | 1 6 11 . . 12 . 9 7 . . Robot Miss Streak 4 | 1 4 1 . . 4 . 4 3 1 . Penetration Max . | . . . . . . . . . . . Secondary Targets 1 | . . . . . . . 1 . . . Max Gunslinging Chain 1 | . . . . . . . 1 . . . Shots Hit Robots 212 | 1 16 13 . . 73 14 50 23 15 7 Core Hits 92 | 1 8 5 . . 43 2 21 7 3 2 Critical Kills 1 | . . . . . 1 . . . . . Critical Parts Destroyed 5 | . . . . . 1 3 1 . . . Critical Strikes 12 | . . . . . 4 3 2 . 2 1 Burn 1 | . . . . . 1 . . . . . Destroy 4 | . . . . . 2 . 2 . . . Blast 1 | . . . . . 1 . . . . . Smash 3 | . . . . . . 3 . . . . Sever 3 | . . . . . . . . . 2 1 Melee Attacks 117 | . . . . . 5 49 10 8 34 11 Impact 58 | . . . . . 5 43 9 1 . . Slashing 52 | . . . . . . . . 7 34 11 Piercing . | . . . . . . . . . . . Sneak Attacks 3 | . . . . . . . 2 1 . . Combat Hostiles . | . . . . . . . . . . . Follow-up Attacks 3 | . . . . . . . . . 3 . Damage Inflicted 5498 | 15 204 165 . . 2041 456 960 662 699 296 Guns 2050 | 15 204 165 . . 898 . 631 137 . . Cannons 1169 | . . . . . 616 . 236 317 . . Explosions 527 | . . . . . 527 . . . . . Melee 1752 | . . . . . . 456 93 208 699 296 Ramming . | . . . . . . . . . . . Kinetic 2499 | 15 204 165 . . 1069 . 667 379 . . Thermal 946 | . . . . . 671 . 200 75 . . Explosive 301 | . . . . . 301 . . . . . Electromagnetic . | . . . . . . . . . . . Impact 549 | . . . . . . 456 93 . . . Slashing 1203 | . . . . . . . . 208 699 296 Piercing . | . . . . . . . . . . . Highest Corruption 5 | . . . . . 1 1 1 1 5 5 Average Corruption 1 | . . . . . 1 1 1 1 1 3 Corruption Purged 5 | . . . . . . . . . . 5 Corruption Blocked . | . . . . . . . . . . . Effects 28 | . . . . . 1 2 6 3 6 10 Message Errors 9 | . . . . . . 2 2 1 . 4 Matter Fused 6 | . . . . . . . . 1 . 5 Heat Flow Errors 2 | . . . . . 1 . . . 1 . Energy Discharges 4 | . . . . . . . 2 1 . 1 Data Loss (minor) 4 | . . . . . . . 1 . 3 . Misfires 2 | . . . . . . . 1 . 1 . Alerts 1 | . . . . . . . . . 1 . Overload Shots . | . . . . . . . . . . . Overflow Damage 298 | . . . . . 10 109 . 52 118 9 Projectiles 10 | . . . . . 10 . . . . . Explosions . | . . . . . . . . . . . Melee 288 | . . . . . . 109 . 52 118 9 Knockbacks 9 | . . . . . 2 3 4 . . . Impact 3 | . . . . . . 3 . . . . Kinetic 5 | . . . . . 2 . 3 . . . Secondary 1 | . . . . . . . 1 . . . Self-Inflicted Damage 122 | . . . . . 122 . . . . . Shots 2 | . . . . . 2 . . . . . Rammed . | . . . . . . . . . . . Targets Rammed . | . . . . . . . . . . . Kicked . | . . . . . . . . . . . Crushed . | . . . . . . . . . . . Highest Temperature 268 | . . . . . 268 1 192 168 181 . Average Temperature 51 | . . . . . 42 1 53 67 78 . Received Heat Transfer 2016 | . 78 69 . . 864 117 252 192 306 138 Siege Activations . | . . . . . . . . . . . Martial Activations . | . . . . . . . . . . . Shielding Activations . | . . . . . . . . . . . Robots Disrupted . | . . . . . . . . . . . Combat Hostiles . | . . . . . . . . . . . Robots Corrupted 3 | . . . . . . 3 . . . . Combat Hostiles 3 | . . . . . . 3 . . . . Parts Fried 3 | . . . . . . 3 . . . . Impact Corruptions 3 | . . . . . . 3 . . . . Robots Melted . | . . . . . . . . . . . Combat Hostiles . | . . . . . . . . . . . Parts Melted 1 | . . . . . 1 . . . . . Heat Transferred 1574 | . . . . . 1093 . 370 111 . . Parts Sabotaged . | . . . . . . . . . . . Parts Stolen . | . . . . . . . . . . . Parts Stripped . | . . . . . . . . . . . Power Chain Reactions . | . . . . . . . . . . . Alert | -11 -10 -10 -10 -9 -8 -8 -8 -7 -7 -7 ------- Run | Yrd Mat Min Exi Min Mat Gar Mat Fac Gar Fac Maximum Alert Level 2 | . . . . . 2 2 1 . . . Low Security (%) 71 | 100 100 100 . 100 37 . 61 100 100 100 Level 1 23 | . . . . . 58 54 38 . . . Level 2 4 | . . . . . 3 45 . . . . Level 3 . | . . . . . . . . . . . Level 4 . | . . . . . . . . . . . Level 5 . | . . . . . . . . . . . High Security . | . . . . . . . . . . . Max Security . | . . . . . . . . . . . Peak Influence 482 | 5 90 51 . . 429 482 263 138 197 102 Initial 278 | . . 11 . . . 278 216 115 4 102 Average 127 | . 28 30 . . 193 376 190 31 98 25 Influence Increases 2304 | 5 125 50 . . 961 266 369 183 313 32 Destroy 0b10 Robot/C 980 | . 100 40 . . 380 120 180 80 60 20 Destroy 0b10 Robot/NC 65 | 5 . . . . 40 . 10 5 5 . Destroy Leader 232 | . 20 10 . . 100 10 42 40 . 10 Allied During Kill 4 | . . . . . . 2 . . 2 . Trap Triggered on 0b10 20 | . . . . . . . . 20 . . Successful Hack 58 | . 5 . . . 20 . . 33 . . Disable Machine 120 | . . . . . 120 . . . . . Anti-Garrison Action 150 | . . . . . . 50 . . 100 . Destroy Structure 210 | . . . . . 106 54 17 5 26 2 Partial Spotted 90 | . . . . . 60 30 . . . . Lose Combat Pursuer 375 | . . . . . 135 . 120 . 120 . Influence Decreases 2304 | 5 95 59 21 . 532 251 558 432 122 229 Entered New Map 656 | . . 19 21 . . 151 228 140 2 95 Time Decay 1228 | 5 95 40 . . 396 . 310 262 . 120 Lost Part 370 | . . . . . 136 60 20 20 120 14 Lost Ally 50 | . . . . . . 40 . 10 . . Squads Dispatched 4 | . . . . . . . 2 1 . 1 Investigation . | . . . . . . . . . . . Extermination 2 | . . . . . . . . 1 . 1 Reinforcement 2 | . . . . . . . 2 . . . Assault . | . . . . . . . . . . . Garrison . | . . . . . . . . . . . Intercept . | . . . . . . . . . . . Searches Triggered . | . . . . . . . . . . . Construction Impeded . | . . . . . . . . . . . Haulers Reinforced . | . . . . . . . . . . . Active Scanning Responses . | . . . . . . . . . . . Cargo Convoy Interrupts . | . . . . . . . . . . . Stealth | -11 -10 -10 -10 -9 -8 -8 -8 -7 -7 -7 --------- Run | Yrd Mat Min Exi Min Mat Gar Mat Fac Gar Fac Distress Signals 10 | . . . . . 5 . 5 . . . Communications Jammed . | . . . . . . . . . . . Distress Signals . | . . . . . . . . . . . Times Spotted 103 | . 6 2 . . 40 10 18 8 14 5 Peak Tracking Total 9 | . 2 2 . . 7 5 5 3 9 2 Tactical Retreats 12 | . . . . . 4 . 3 . 5 . Traps | -11 -10 -10 -10 -9 -8 -8 -8 -7 -7 -7 ------- Run | Yrd Mat Min Exi Min Mat Gar Mat Fac Gar Fac Traps Triggered 7 | . . . . . 1 2 . . 4 . Indirectly . | . . . . . . . . . . . Trap Hack Attempts 8 | . . . . . . . . 8 . . Triggered . | . . . . . . . . . . . Disarmed . | . . . . . . . . . . . Reprogrammed 3 | . . . . . . . . 3 . . Reused 2 | . . . . . . . . 2 . . Traps Extracted 2 | . . . . . . . . 2 . . Installed 1 | . . . . . . . . 1 . . Triggered 2 | . . . . . . . . 2 . . Most Traps Carried 2 | . . . . . . . . 2 1 . Machines | -11 -10 -10 -10 -9 -8 -8 -8 -7 -7 -7 ---------- Run | Yrd Mat Min Exi Min Mat Gar Mat Fac Gar Fac Machines Disabled 10 | . . . . . 8 1 . . 1 . Max in Single Turn 3 | . . . . . 3 1 . . 1 . Garrison Relay 2 | . . . . . . 1 . . 1 . Machines Repaired . | . . . . . . . . . . . Machines Dismantled . | . . . . . . . . . . . Machines Sabotaged . | . . . . . . . . . . . Overloaded Fab Kills . | . . . . . . . . . . . Hacking | -11 -10 -10 -10 -9 -8 -8 -8 -7 -7 -7 --------- Run | Yrd Mat Min Exi Min Mat Gar Mat Fac Gar Fac Machines Accessed 22 | . 3 . 1 . 8 . . 5 2 3 Terminals 14 | . 3 . . . 6 . . 3 2 . Fabricators 3 | . . . . . . . . . . 3 Repair Stations 1 | . . . . . . . . 1 . . Recycling Units . | . . . . . . . . . . . Scanalyzers 1 | . . . . . 1 . . . . . Garrison Access 2 | . . . . . 1 . . 1 . . Total Hacks 57 | . 8 . 1 . 25 . . 13 5 5 Successful 24 | . 2 . 1 . 13 . . 7 1 . Failed 33 | . 6 . . . 12 . . 6 4 5 Catastrophic 3 | . . . . . . . . . . 3 Database Lockouts . | . . . . . . . . . . . Manual 28 | . 5 . 1 . 14 . . 3 . 5 Terminals 42 | . 8 . . . 20 . . 9 5 . Fabricators 5 | . . . . . . . . . . 5 Repair Stations 3 | . . . . . . . . 3 . . Recycling Units . | . . . . . . . . . . . Scanalyzers 4 | . . . . . 4 . . . . . Garrison Access 2 | . . . . . 1 . . 1 . . Terminal Hacks 7 | . . . 1 . 3 . . 2 1 . Robot Schematic 1 | . . . . . . . . 1 . . Robot Analysis 1 | . . . . . 1 . . . . . Open Door 1 | . . . . . . . . . 1 . Branch Access Points 1 | . . . . . . . . 1 . . Terminal Index 1 | . . . . . 1 . . . . . Zone Layout 1 | . . . . . 1 . . . . . Proto ID Catalog 1 | . . . 1 . . . . . . . Fabricator Hacks . | . . . . . . . . . . . Repair Station Hacks 1 | . . . . . . . . 1 . . Scan Component 1 | . . . . . . . . 1 . . Recycling Unit Hacks . | . . . . . . . . . . . Scanalyzer 4 | . . . . . 4 . . . . . Insert Component 2 | . . . . . 2 . . . . . Analyze 2 | . . . . . 2 . . . . . Garrison Access Hacks 2 | . . . . . 1 . . 1 . . Unlock Access 2 | . . . . . 1 . . 1 . . Unauthorized Hacks 10 | . 2 . . . 5 . . 3 . . Terminals 10 | . 2 . . . 5 . . 3 . . Botnet 10 | . 2 . . . 5 . . 3 . . Fabricators . | . . . . . . . . . . . Repair Stations . | . . . . . . . . . . . Recycling Units . | . . . . . . . . . . . Scanalyzers . | . . . . . . . . . . . Garrison Access . | . . . . . . . . . . . Data Cores Recovered . | . . . . . . . . . . . Used . | . . . . . . . . . . . Hacking Detections 18 | . 3 . . . 6 . . 5 1 3 Full Trace Events 1 | . . . . . . . . . 1 . Feedback Events . | . . . . . . . . . . . Feedback Blocked . | . . . . . . . . . . . Robot Schematics Acquired 1 | . . . . . . . . 1 . . Robots Built . | . . . . . . . . . . . Authchips . | . . . . . . . . . . . Time . | . . . . . . . . . . . Total Robot Build Rating . | . . . . . . . . . . . Part Schematics Acquired 2 | . . . . . 2 . . . . . Parts Built . | . . . . . . . . . . . Authchips . | . . . . . . . . . . . Time . | . . . . . . . . . . . Total Part Build Rating . | . . . . . . . . . . . Parts Repaired . | . . . . . . . . . . . Time . | . . . . . . . . . . . Parts Recycled . | . . . . . . . . . . . Recycled Matter . | . . . . . . . . . . . Retrieved Matter . | . . . . . . . . . . . Retrieved Components . | . . . . . . . . . . . Parts Scanalyzed 2 | . . . . . 2 . . . . . Part Schematics Acquired 2 | . . . . . 2 . . . . . Parts Damaged . | . . . . . . . . . . . Bothacking | -11 -10 -10 -10 -9 -8 -8 -8 -7 -7 -7 ------------ Run | Yrd Mat Min Exi Min Mat Gar Mat Fac Gar Fac Used RIF Installer 2 | . . . . . . 1 . . 1 . Watcher Feeds 1 | . . . . . . . . . 1 . Robots Hacked 3 | . . . . . . 2 1 . . . Non-combat 1 | . . . . . . . 1 . . . Combat 2 | . . . . . . 2 . . . . Robot Hacks Applied 3 | . . . . . . 2 1 . . . formatsys_low 1 | . . . . . . . 1 . . . formatsys_high 2 | . . . . . . 2 . . . . Relay Couplers Released 9 | . . . . . . 5 . . 4 . Machine Destruction 9 | . . . . . . 5 . . 4 . Attached 3 | . . . . . . 2 1 . . . Fabnet Peak Effective % . | . . . . . . . . . . . Robots Rewired . | . . . . . . . . . . . Allies Hacked . | . . . . . . . . . . . Hacks Repelled . | . . . . . . . . . . . Allies | -11 -10 -10 -10 -9 -8 -8 -8 -7 -7 -7 -------- Run | Yrd Mat Min Exi Min Mat Gar Mat Fac Gar Fac Total Allies 5 | . . 1 . . . 2 1 . 1 . Largest Group 1 | . . 1 1 . . 1 1 1 1 . Highest-Rated Group 31 | . . 31 31 . . 25 26 26 31 . Highest-Rated Ally 31 | . . 31 31 . . 25 26 26 31 . Total Orders . | . . . . . . . . . . . Ally Attacks 12 | . . . . . . 5 . . 7 . Total Damage 246 | . . . . . . 139 . . 107 . Kills 3 | . . . . . . 1 . . 2 . Allies Corrupted . | . . . . . . . . . . . Allies Melted . | . . . . . . . . . . . Intel | -11 -10 -10 -10 -9 -8 -8 -8 -7 -7 -7 ------- Run | Yrd Mat Min Exi Min Mat Gar Mat Fac Gar Fac Active Infowar (turns) 2512 | 36 356 86 395 47 119 . 217 801 41 414 Structural 1059 | . . . . . . . 217 801 41 . Traps 450 | . . . . . 36 . . . . 414 Seismic 979 | 36 356 86 395 47 59 . . . . . T.N.C. 24 | . . . . . 24 . . . . . Robot Analysis Total 1 | . . . . . 1 . . . . . Derelict Logs Recovered 1 | . . . . 1 . . . . . . Drone Launches . | . . . . . . . . . . . Drone Recoveries . | . . . . . . . . . . . Exploration | -11 -10 -10 -10 -9 -8 -8 -8 -7 -7 -7 ------------- Run | Yrd Mat Min Exi Min Mat Gar Mat Fac Gar Fac Turns Passed 4939 | 71 356 86 395 47 1016 389 680 883 532 484 Spaces Moved 4408 | 71 309 53 368 45 1111 425 383 600 298 745 Core 234 | 2 . . . . 1 . . . 113 118 Treads . | . . . . . . . . . . . Legs 1223 | . . . . . 144 . 294 600 185 . Wheels 844 | 69 309 53 368 45 . . . . . . Hover 2107 | . . . . . 966 425 89 . . 627 Flight . | . . . . . . . . . . . Fastest Speed 34 | 50 80 110 105 105 34 34 106 120 50 50 Average Speed 83 | 79 94 110 106 105 57 39 124 124 130 55 Slowest Speed 270 | 80 110 110 110 105 270 106 190 190 190 60 Overloaded Moves . | . . . . . . . . . . . Propulsion Burnouts . | . . . . . . . . . . . Robots Hopped . | . . . . . . . . . . . Potential Cave-ins . | . . . . . . . . . . . Cave-ins Triggered . | . . . . . . . . . . . Exploration Rate (%) 37 | 3 55 14 87 23 85 39 41 15 35 14 Regions Visited 10 Branch Regions 3 Pre-discovered Areas 1 | . . . . 1 . . . . . . Known Exits Taken 2 | . . . . . 1 . . 1 . . Unknown Exits Taken 6 | 1 1 1 1 1 . . 1 . . . Scrap Searched . | . . . . . . . . . . . Spaces Dug 33 | . . . . . 4 9 8 4 6 2 Terrain Destroyed 153 | . . . . . 117 9 14 5 6 2 Melee 33 | . . . . . 4 9 8 4 6 2 Projectile 11 | . . . . . 4 . 6 1 . . AOE 109 | . . . . . 109 . . . . . Terrain Rammed . | . . . . . . . . . . . Walls Destroyed . | . . . . . . . . . . . Machines Disabled . | . . . . . . . . . . . Actions | -11 -10 -10 -10 -9 -8 -8 -8 -7 -7 -7 --------- Run | Yrd Mat Min Exi Min Mat Gar Mat Fac Gar Fac Total 5213 | 80 343 66 371 44 1362 578 491 692 389 797 Wait 268 | . 2 4 . . 107 75 22 31 . 27 Move 4400 | 70 308 52 367 44 1111 424 382 600 297 745 Hop . | . . . . . . . . . . . Pick Up 43 | 1 17 1 1 . 11 6 1 5 . . Fast Attach 50 | 7 . . . . 16 2 12 1 3 9 Attach 33 | . . . . . 21 3 . 5 3 1 Detach 16 | 1 . . . . 8 . 2 1 2 2 Swap 38 | . 1 . 1 . 8 2 13 7 5 1 Drop 44 | . . 1 2 . 14 2 11 2 11 1 Fire 144 | 1 15 8 . . 61 . 37 22 . . Melee 114 | . . . . . 5 49 10 8 31 11 Ram . | . . . . . . . . . . . Kick . | . . . . . . . . . . . Crush . | . . . . . . . . . . . Escape Stasis 51 | . . . . . . 13 . 1 37 . Rewire 3 | . . . . . . 2 1 . . . Trap 9 | . . . . . . . . 9 . . Miscellaneous . | . . . . . . . . . . . Route ------- -11/Scrapyard -10/Materials (discovered 2 exits: [*Mat] / [*Min]) -10/Mines -10/Exiles -9/Mines -8/Materials (discovered 4 exits: *Fac x3 / Gar) -8/Garrison -8/Materials -7/Factory (discovered 5 exits: [*Fac] / Sto / *Low x2 / Gar) -7/Garrison -7/Factory History --------- Turn | Location | Event 21 | -11/Scrapyard | Discovered new exit (range 12) 72 | -11/Scrapyard | Entered Materials 165 | -10/Materials | Discovered new exit (range 3) 316 | -10/Materials | Build established: Mutant 317 | -10/Materials | Discovered new exit (range 13) 428 | -10/Materials | Entered Mines 489 | -10/Mines | Received a Mining Laser from a helpful Derelict 506 | -10/Mines | Deemed a non-threat by the Exiles lab entrance 506 | -10/Mines | Discovered new exit (range 5) 514 | -10/Mines | Entered Exiles 514 | -10/Exiles | Accompanied by 1 ally 541 | -10/Exiles | Met 8R-AWN 561 | -10/Exiles | Met EX-HEX 591 | -10/Exiles | Met EX-BIN 604 | -10/Exiles | Aligned with FarCom system 605 | -10/Exiles | Given EX-Vault access code 630 | -10/Exiles | Opened EX-Vault 640 | -10/Exiles | Found YOLO Cannon 661 | -10/Exiles | Warned to stay clear of 0b10 Research branches 693 | -10/Exiles | Met EX-DEC 728 | -10/Exiles | Visited The Gauntlet 900 | -10/Exiles | Discovered new exit (range 10) 909 | -10/Exiles | Left Exiles lab with YOLO Cannon 909 | -10/Exiles | Entered Mines 946 | -9/Mines | Discovered new exit (range 9) 956 | -9/Mines | Entered Materials 956 | -8/Materials | Evolved 4 slots: Propulsion x3, Utility x1 1084 | -8/Materials | Lost 8 parts (1p4n2u1w) 1195 | -8/Materials | Lost 8 parts (6n1u1w) 1536 | -8/Materials | Discovered new exit (range 8) 1673 | -8/Materials | Discovered new exit (range 4) 1870 | -8/Materials | Discovered new exit (range 13) 1929 | -8/Materials | Core integrity fell below 50% 1972 | -8/Materials | Identified exit to Garrison 1972 | -8/Materials | Entered Garrison 2010 | -8/Garrison | Triggered checkpoint 2046 | -8/Garrison | Discovered new exit (range 11) 2130 | -8/Garrison | Triggered checkpoint 2208 | -8/Garrison | Lost 3 parts (1p2n) 2257 | -8/Garrison | Installed Relay Interface Framework 2309 | -8/Garrison | Garrison Relay disabled 2361 | -8/Garrison | Entered Materials 2381 | -8/Materials | Lost 3 parts (2n1u) 2599 | -8/Materials | Build established: Bothacker-Mutant 2650 | -8/Materials | Core integrity fell below 20% 2999 | -8/Materials | Discovered new exit (range 16) 3041 | -8/Materials | Entered Factory 3041 | -7/Factory | Accompanied by 1 ally 3041 | -7/Factory | Evolved 2 slots: Utility x2 3061 | -7/Factory | Identified exit to Storage 3061 | -7/Factory | Identified exit to Lower Caves 3073 | -7/Factory | Discovered new exit (range 12) 3364 | -7/Factory | Build established: Hacker-Mutant 3924 | -7/Factory | Identified exit to Garrison 3924 | -7/Factory | Entered Garrison 4056 | -7/Garrison | Triggered checkpoint 4078 | -7/Garrison | Garrison Relay disabled 4103 | -7/Garrison | Rescued a captive Derelict 4289 | -7/Garrison | P-70 Sage assimilated allied TI-2C1(g) 4357 | -7/Garrison | Core integrity fell below 50% 4404 | -7/Garrison | Core integrity fell below 20% 4428 | -7/Garrison | Lost 10 parts (1p3n4u2w) 4434 | -7/Garrison | Discovered new exit (range 10) 4448 | -7/Garrison | Expanded RIF knowledge: Watcher Feeds 4456 | -7/Garrison | Entered Factory 4940 | -7/Factory | Destroyed by Y-54 Guardian with Gatling Laser Last Messages --------------- system corruption (1%). 04828_ System Restoration Module purges 1% system corruption (0%). 04828_ System Restoration Module expended. 04841_ ALERT: All DSF locations entering lockdown mode. 04876_ K-01 Serf cleans the Megafabricator. 04885_ Y-54 Guardian destroyed. 04910_ Destroyed Imp. Heat Sink. 04919_ Xenon Bombardment Thruster destroyed. 04928_ K-01 Serf cleans the Subcomponent Replicator. 04930_ Y-54 Guardian Flak Gun severed. 04931_ K-01 Serf cleans the Subcomponent Replicator. 04932_ Airjet destroyed. 04934_ Trap Scanner destroyed. 04934_ Airjet destroyed. 04938_ K-01 Serf cleans the Subcomponent Replicator. Map ----- +----------------------------------------------------+ | ?????????????????????????????????????????????????? | | ?????????????????????????????????????????????????? | | ?????????????????????????????????????????????????? | | ?????????????????????????????????????????????????? | | ?????????????????????????????????????????????????? | | ?????????????????????????????????????????????????? | | ?????????????????????????????????????????????????? | | ?????????????????????????????????????????????????? | | ?????????????????????????????????????????????????? | | ?????????????????????????????????????????????????? | | ?????????????????????????????????????????????????? | | ?????????????????????????????????????????????????? | | ?????????????????????????????????????????????????? | | ?????????????????????????????????????????????????? | | ?????????????????????????????????????????????????? | | ?????????????????????????????????????????????????? | | ?????????????????????????????????????????????????? | | ??????????????????????###########????????????????? | | ??????????????????????#k? #????????????????? | | ??????????????????????# "" "" *#????????????????? | | ??######??????????????# "" "" #????????????????? | | ??# #####????????# """ """ ####?????????????? | | ??#= # ########## """ """ p ??????????????? | | ??# + " + # """ """ #????????????????? | | ??# # # # #????????????????? | | ??# ## ## # [@ #????????????????? | | ??# ??# ## ##Y########????????????????? | | ??######??# ## ## #???????????????????????? | | ??????????# ## ## ##??????????????????????? | | ??????????# ## ] # ###### #?????????????? | | ??????????# ## ] + % #?????????????? | | ??????????# ## ] # * ######! #?????????????? | | ??????????# ############/#####??? #??????????????? | | ??????????# #??????# #### #??????????????? | | ??????????# #??????# + #??????????????? | | ??????????# #??????# #### #??????????????? | | ??????????# #??????# #??# #??????????????? | | ??????????# #??????# #??# #??????????????? | | ??????????# #??????# #??# #??????????????? | | ??????????# #??????# #??# ###########????? | | ??????????# #??????# #??# ## #????? | | ??????????# #??????#######+###??# ## #????? | | ??????##### ############## ###### ## #????? | | ??????# p # ## #????? | | ??????# ^ ] # #????? | | ??????# + #????? | | ??????# # #????? | | ??????# # #????? | | ??????# # #????? | | ??????# """""" """""" ##########????? | +----------------------------------------------------+ Best States ------------- Heat Dissipation 45 Energy Generation 25 Energy Capacity 290 Matter Stores 300 Matter Capacity 300 Sight Range 16 Terrain Scan Density 10 Armor Coverage 225 Phase Shifting 15 Evasion (%) 65 Offensive Hacking 20 Defensive Hacking 20 Relay Coupler Types 1 Relay Coupler Value 26 Trap Extractor Capacity 6 Item Schematics ----------------- Aerolev Unit | -8/Materials | Scanalyzed Assault Cannon | -8/Materials | Scanalyzed Robot Schematics ------------------ M-28 Smith | -7/Factory | Hacked Fabricated ------------ Nothing Repaired ---------- Nothing Alien Tech Used ----------------- None Achievements -------------- None Challenges ------------ None Game ------ Seed AntigravMachineBoregun Manual? 0 Play Time 01:09:05 Cumulative 204.1 hours Start 2025.06.04 @ 14:03:00 End 2025.06.04 @ 16:20:34 Sessions 1 Manual Loads 0 Difficulty Rogue Special Mode None Game No. 105 Rogue 105 Adventurer 0 Explorer 0 Win Type - Total 13 Types 5/0/5/1/2/0/0/0/0/0 Lore% 78 Gallery% 66 Achievement% 64 Wizard Run 0 Options --------- Layout 1 ASCII 0 Keyboard 0 Movement Numpad Keybinds 0 Fullscreen 1 Font 24/Smallcaps Map View 50x35 Zoom Use 0% Tactical HUD 1 Map Filters NONE Filters NONE Steam 1 RUN: 4bf63a03-edb5-45cb-a7f8-542492675275